bitfinex-derivatives/quotes_BTCF0:USTF0_20250119
["timestamp","ask_amount","ask_price","bid_price","bid_amount"]
[1737316795390,0.047108,106260.0,106250.0,0.047112]
[1737316795685,0.407908,106260.0,106240.0,0.00011648]
[1737316795891,0.407912,106250.0,106240.0,0.00011648]
[1737316796189,0.407912,106250.0,106230.0,1.15951221]
[1737316796190,0.307912,106250.0,106230.0,1.15951221]
[1737316796387,0.1722,106240.0,106230.0,1.15951221]
[1737316796589,0.219317,106240.0,106230.0,1.21439082]
[1737316796783,0.219317,106240.0,106230.0,0.80823144]
[1737316797089,0.219317,106240.0,106230.0,1.16903144]
[1737316797392,0.21941854,106240.0,106230.0,1.39044869]
[1737316797591,0.21941854,106240.0,106230.0,1.4022348]
[1737316798189,0.17230154,106240.0,106230.0,1.40223487]
[1737316798696,0.17230154,106240.0,106230.0,1.38399676]
[1737316798896,0.21941854,106240.0,106230.0,1.38399676]
[1737316799086,0.21941854,106240.0,106230.0,1.16267865]
[1737316799492,0.00010154,106240.0,106230.0,1.16267865]
[1737316799794,0.00010154,106240.0,106230.0,1.18035633]
[1737316800589,0.00010154,106240.0,106230.0,1.74274009]
[1737316801294,0.00010154,106240.0,106230.0,1.46114837]
[1737316801793,0.00010154,106240.0,106230.0,1.46170643]
[1737316801983,0.00010154,106240.0,106230.0,1.45549726]
[1737316802795,0.00010154,106240.0,106230.0,1.45549639]
[1737316803499,0.00010154,106240.0,106230.0,1.11403624]
[1737316804495,0.00010154,106240.0,106230.0,0.69433097]
[1737316804496,0.04721854,106240.0,106230.0,0.69433097]
[1737316804697,0.59111854,106240.0,106220.0,0.64871306]
[1737316804898,0.047126,106220.0,106210.0,0.33253496]
[1737316805295,0.047126,106220.0,106210.0,0.34671069]
[1737316805595,0.047126,106220.0,106210.0,0.06471069]
[1737316805795,0.047126,106220.0,106210.0,0.05469306]
[1737316806000,0.04713,106210.0,106200.0,1.26604191]
[1737316806199,0.04713,106210.0,106200.0,1.21890545]
[1737316806407,0.04713,106210.0,106200.0,0.82018354]
[1737316806793,0.04713,106210.0,106200.0,0.83547763]
[1737316806992,0.04713,106210.0,106200.0,0.88261263]
[1737316807197,0.04713,106210.0,106200.0,0.86787634]
[1737316807600,0.04713,106210.0,106200.0,0.82018354]
[1737316807798,0.04713,106210.0,106200.0,0.82313088]
[1737316808097,0.04713,106210.0,106200.0,0.36374734]
[1737316808098,0.22543,106210.0,106200.0,0.36374734]
[1737316808603,0.22543,106210.0,106200.0,0.36374755]
[1737316808799,0.04713,106210.0,106200.0,0.41088255]
[1737316809200,0.1756,106220.0,106200.0,0.00294755]
[1737316809403,0.04713,106210.0,106200.0,0.00294755]
[1737316809599,0.04713,106210.0,106200.0,0.36374755]
[1737316810597,0.04713,106210.0,106200.0,0.00294755]
[1737316812401,0.047135,106200.0,106190.0,9.535e-05]
[1737316812704,0.233735,106200.0,106190.0,0.36089535]
[1737316812899,0.233735,106200.0,106180.0,0.00022035]
[1737316812900,0.047139,106190.0,106180.0,0.00022035]
[1737316813097,0.228339,106190.0,106180.0,0.00022035]
[1737316814100,0.228339,106190.0,106170.0,0.3608]
[1737316814298,0.047144,106180.0,106170.0,0.41384316]
[1737316814500,0.047144,106180.0,106170.0,0.45216833]
[1737316814898,0.047144,106180.0,106170.0,0.40502133]
[1737316815099,0.047144,106180.0,106170.0,0.45216933]
[1737316815903,0.04714,106190.0,106180.0,0.047139]
[1737316816104,0.04714,106190.0,106180.0,0.41855161]
[1737316816307,0.04714,106190.0,106180.0,0.41855131]
[1737316816605,0.04714,106190.0,106180.0,0.45687648]
[1737316816901,0.04714,106190.0,106180.0,0.46866778]
[1737316817108,0.04714,106190.0,106180.0,0.06072878]
[1737316817300,0.04714,106190.0,106180.0,0.42152878]
[1737316817494,0.04714,106190.0,106180.0,0.06072878]
[1737316817697,0.04714,106190.0,106180.0,0.42152878]
[1737316818104,0.04714,106190.0,106180.0,0.46867278]
[1737316818404,0.04714,106190.0,106180.0,0.42152878]
[1737316818605,0.04714,106190.0,106180.0,0.40973748]
[1737316818905,0.04714,106190.0,106180.0,0.37141231]
[1737316819104,0.04714,106190.0,106180.0,0.38320407]
[1737316819404,0.047144,106180.0,106170.0,0.36074]
[1737316819705,0.220544,106180.0,106170.0,0.00471705]
[1737316819903,0.581344,106180.0,106170.0,0.00471705]
[1737316820100,0.047148,106170.0,106160.0,0.5067575]
[1737316820301,0.23036175,106170.0,106160.0,0.52326886]
[1737316820508,0.23036175,106170.0,106160.0,0.51147503]
[1737316821019,0.59116175,106170.0,106160.0,0.51147503]
[1737316821307,0.59116175,106170.0,106160.0,0.5067575]
[1737316821610,0.59116175,106170.0,106160.0,0.0001175]
[1737316821996,0.59116175,106170.0,106140.0,0.37533522]
[1737316822197,0.407957,106150.0,106130.0,0.36133488]
[1737316822409,0.407957,106150.0,106130.0,0.00188448]
[1737316822410,0.407961,106140.0,106130.0,0.00188448]
[1737316823107,0.40805955,106140.0,106130.0,0.00188448]
[1737316823306,0.40805955,106140.0,106110.0,0.38730669]
[1737316823307,0.04717,106120.0,106110.0,0.38730669]
[1737316823610,0.047175,106110.0,106100.0,1.45549397]
[1737316823812,0.047179,106100.0,106090.0,0.00011239]
[1737316824112,0.047179,106100.0,106090.0,0.00199758]
[1737316824113,0.407979,106100.0,106090.0,0.00199758]
[1737316824315,0.407979,106100.0,106090.0,0.0049483]
[1737316825010,0.407979,106100.0,106070.0,0.1866]
[1737316825207,0.047188,106080.0,106070.0,0.233792]
[1737316825410,0.407988,106080.0,106070.0,0.233792]
[1737316825707,0.407988,106080.0,106070.0,0.25446621]
[1737316826107,0.40809834,106080.0,106070.0,0.25446621]
[1737316826412,0.40809834,106080.0,106070.0,0.06786621]
[1737316827405,0.04729834,106080.0,106070.0,0.06839852]
[1737316827607,0.04729834,106080.0,106070.0,0.00053231]
[1737316827808,0.3608,106110.0,106070.0,0.407992]
[1737316828002,0.047181,106100.0,106090.0,0.047184]
[1737316828207,0.407981,106100.0,106090.0,0.047184]
[1737316828412,0.047181,106100.0,106090.0,0.631884]
[1737316828703,0.047184,106090.0,106080.0,0.06204885]
[1737316828904,7.088e-05,106090.0,106080.0,0.42231687]
[1737316829112,0.3608,106140.0,106120.0,0.04717]
[1737316829319,0.3608,106140.0,106130.0,0.631866]
[1737316829320,0.047165,106140.0,106130.0,0.631866]
[1737316830006,0.407965,106140.0,106130.0,0.631866]
[1737316830209,0.40805576,106140.0,106130.0,0.5847]
[1737316830508,0.40805576,106140.0,106130.0,0.59059968]
[1737316832315,0.70805576,106140.0,106130.0,0.59531938]
[1737316832519,0.047166,106130.0,106110.0,0.01486338]
[1737316832724,0.76877,106120.0,106110.0,0.00053251]
[1737316833417,0.76877,106120.0,106090.0,0.5332139]
[1737316833418,0.76877,106120.0,106090.0,0.18674029]
[1737316833621,0.047179,106100.0,106090.0,0.23392229]
[1737316833918,0.02593787,106100.0,106090.0,0.59472229]
[1737316834315,0.02593787,106100.0,106090.0,0.67437646]
[1737316834916,0.02593787,106100.0,106090.0,0.31357646]
[1737316835412,0.02593787,106100.0,106090.0,0.32242714]
[1737316836112,0.02593787,106100.0,106090.0,0.31357653]
[1737316837004,0.02593787,106100.0,106090.0,0.323691]
[1737316837209,0.38673787,106100.0,106090.0,0.323691]
[1737316837404,0.02593787,106100.0,106090.0,0.32369102]
[1737316837804,0.02593787,106100.0,106090.0,0.32369086]
[1737316838024,0.02593787,106100.0,106090.0,0.31484032]
[1737316838222,0.02593787,106100.0,106090.0,0.32369091]
[1737316839315,0.02593787,106100.0,106090.0,0.32369107]
[1737316840313,0.38673787,106100.0,106090.0,0.31484048]
[1737316840618,0.02593787,106100.0,106090.0,0.32074103]
[1737316841006,0.02593787,106100.0,106090.0,0.23856103]
[1737316841206,0.02593787,106100.0,106090.0,0.23856094]
[1737316841411,0.02593787,106100.0,106090.0,0.3207813]
[1737316841618,0.02593787,106100.0,106090.0,0.32963187]
[1737316842117,0.047179,106100.0,106090.0,0.32963187]
[1737316842518,0.407979,106100.0,106090.0,0.37565604]
[1737316842912,0.047179,106100.0,106090.0,0.37565604]
[1737316843515,0.407979,106100.0,106090.0,0.30782261]
[1737316843710,0.40805666,106100.0,106090.0,0.02242271]
[1737316843909,0.40805666,106100.0,106090.0,0.01357109]
[1737316844321,0.70805666,106100.0,106090.0,0.01357109]
[1737316844516,0.40805666,106100.0,106090.0,0.01357109]
[1737316844818,0.047192,106070.0,106060.0,0.19747973]
[1737316845119,0.407992,106070.0,106060.0,0.24467673]
[1737316845509,0.407989,106080.0,106070.0,0.047192]
[1737316845510,0.40799,106080.0,106070.0,0.047192]
[1737316845713,0.047185,106090.0,106080.0,0.047188]
[1737316845906,0.047185,106090.0,106080.0,0.23973996]
[1737316846112,0.40805766,106100.0,106090.0,0.088986]
[1737316846317,0.40805766,106100.0,106090.0,0.48753732]
[1737316847812,0.36087766,106100.0,106090.0,0.22858543]
[1737316848020,7.766e-05,106100.0,106090.0,0.22858543]
[1737316848318,7.766e-05,106100.0,106090.0,0.59823615]
[1737316848518,0.407971,106120.0,106110.0,0.309077]
[1737316848720,0.38673125,106120.0,106110.0,0.31792772]
[1737316849421,0.38682505,106120.0,106110.0,0.31792772]
[1737316849613,0.38682505,106120.0,106110.0,0.27075272]
[1737316849814,0.38682505,106120.0,106110.0,0.261902]
[1737316850211,0.047166,106130.0,106110.0,0.669877]
[1737316850417,0.047166,106130.0,106120.0,0.479872]
[1737316850723,0.3608,106140.0,106120.0,0.68831948]
[1737316850924,0.407963,106140.0,106130.0,0.047166]
[1737316851119,0.407963,106140.0,106130.0,0.05601559]
[1737316851318,0.40805782,106140.0,106130.0,0.05601559]
[1737316851920,0.37856455,106140.0,106130.0,0.05601559]
[1737316852324,0.37856455,106140.0,106130.0,0.047166]
[1737316852728,0.37856455,106140.0,106130.0,0.05306465]
[1737316853424,0.37856455,106140.0,106130.0,0.23516465]
[1737316853727,0.37856455,106140.0,106130.0,0.24401263]
[1737316854027,0.37856455,106140.0,106130.0,0.19684663]
[1737316854420,0.37856455,106140.0,106130.0,0.24401263]
[1737316854730,0.4708639,106140.0,106130.0,0.23988362]
[1737316854918,0.16735482,106150.0,106140.0,0.047161]
[1737316855115,0.16735482,106150.0,106140.0,0.07842365]
[1737316855314,0.407953,106160.0,106150.0,0.047157]
[1737316855520,0.407953,106160.0,106150.0,0.05777462]
[1737316855814,0.40805208,106160.0,106150.0,0.05777462]
[1737316856015,0.36089908,106160.0,106150.0,0.05777462]
[1737316856522,0.36089908,106160.0,106150.0,0.07841299]
[1737316856718,0.36089908,106160.0,106150.0,0.08136164]
[1737316856719,0.47348348,106160.0,106150.0,0.08136164]
[1737316856922,0.47348348,106160.0,106150.0,0.09610493]
[1737316857124,0.47348348,106160.0,106150.0,0.08725889]
[1737316857715,0.36089908,106160.0,106150.0,0.08725889]
[1737316857914,9.908e-05,106160.0,106150.0,0.44805889]
[1737316858116,9.908e-05,106160.0,106150.0,0.45690435]
[1737316858315,9.908e-05,106160.0,106150.0,0.45690311]
[1737316858519,9.908e-05,106160.0,106150.0,0.62840311]
[1737316858729,9.908e-05,106160.0,106150.0,0.61955765]
[1737316858925,9.908e-05,106160.0,106150.0,0.61955752]
[1737316859233,0.04725108,106160.0,106150.0,0.25875752]
[1737316859417,0.40805108,106160.0,106150.0,0.25875752]
[1737316860128,9.908e-05,106160.0,106150.0,0.25375935]
[1737316860321,9.908e-05,106160.0,106150.0,0.61455935]
[1737316860725,0.5205294,106180.0,106170.0,0.047148]
[1737316860927,0.5205294,106180.0,106170.0,0.01356252]
[1737316861118,0.5205294,106180.0,106170.0,0.01409429]
[1737316861825,0.5205294,106180.0,106170.0,0.01409364]
[1737316862027,0.5205294,106180.0,106170.0,0.01356199]
[1737316862228,0.8529294,106180.0,106170.0,0.00766547]
[1737316862423,0.740345,106180.0,106170.0,0.00766547]
[1737316863632,0.740345,106180.0,106170.0,0.00766662]
[1737316863818,1.040345,106180.0,106170.0,0.00766662]
[1737316864017,0.047157,106150.0,106140.0,0.54553163]
[1737316864338,0.047157,106150.0,106140.0,0.38321043]
[1737316864525,0.407957,106150.0,106140.0,0.0106155]
[1737316864720,0.407957,106150.0,106140.0,0.004718]
[1737316865122,0.047161,106140.0,106130.0,0.16699139]
[1737316865318,0.407961,106140.0,106120.0,7.512e-05]
[1737316865620,0.407966,106130.0,106120.0,0.00597434]
[1737316865818,0.407966,106130.0,106120.0,7.512e-05]
[1737316866923,0.047175,106110.0,106100.0,0.22536731]
[1737316867122,0.407975,106110.0,106100.0,0.23179784]
[1737316867328,1.068775,106110.0,106100.0,0.02031019]
[1737316867631,0.047179,106100.0,106090.0,0.18140718]
[1737316867822,0.40805412,106100.0,106090.0,0.18140718]
[1737316868022,0.40805412,106100.0,106090.0,0.01582915]
[1737316868225,0.40805412,106100.0,106090.0,0.00141384]
[1737316868536,0.047184,106090.0,106080.0,0.38672108]
[1737316868731,0.407984,106090.0,106080.0,0.38672108]
[1737316869326,0.36087512,106100.0,106080.0,0.38672108]
[1737316869529,0.36087512,106100.0,106090.0,0.047184]
[1737316869530,7.512e-05,106100.0,106090.0,0.047184]
[1737316869720,7.512e-05,106100.0,106090.0,0.59581554]
[1737316869925,7.512e-05,106100.0,106090.0,0.58636146]
[1737316870125,7.512e-05,106100.0,106090.0,0.99291377]
[1737316870526,0.40805412,106100.0,106090.0,0.41798385]
[1737316870730,0.40805412,106100.0,106090.0,0.4174537]
[1737316870931,0.40805412,106100.0,106090.0,0.40565231]
[1737316871229,0.047184,106090.0,106080.0,0.38725123]
[1737316871532,0.047184,106090.0,106080.0,0.38672108]
[1737316871533,0.407984,106090.0,106080.0,0.38672108]
[1737316872436,0.04719,106080.0,106060.0,0.81519]
[1737316872730,0.40799,106080.0,106070.0,0.047192]
[1737316875127,0.40799,106080.0,106070.0,0.05191348]
[1737316875528,0.40799,106080.0,106070.0,0.05781534]
[1737316875724,0.3608,106080.0,106070.0,0.06961895]
[1737316875928,0.3608,106080.0,106070.0,0.06076623]
[1737316876134,0.3608,106080.0,106070.0,0.07256981]
[1737316876329,0.407988,106080.0,106070.0,0.12534928]
[1737316876530,0.407988,106080.0,106070.0,0.1135457]
[1737316876730,0.407988,106080.0,106070.0,0.09997147]
[1737316876937,0.407988,106080.0,106070.0,0.06076667]
[1737316877237,0.407988,106080.0,106070.0,0.05486464]
[1737316879342,0.3608,106080.0,106070.0,0.05486464]
[1737316879547,0.407985,106090.0,106070.0,0.42746763]
[1737316879736,7.512e-05,106100.0,106090.0,0.047184]
[1737316879935,7.512e-05,106100.0,106090.0,0.78805664]
[1737316880336,7.512e-05,106100.0,106090.0,0.42725664]
[1737316880536,7.512e-05,106100.0,106090.0,0.46560869]
[1737316881945,0.04725412,106100.0,106090.0,0.46560869]
[1737316882138,0.40805412,106100.0,106090.0,0.04602469]
[1737316882343,0.40805412,106100.0,106070.0,0.81752991]
[1737316882538,0.3608,106080.0,106070.0,0.82520207]
[1737316882841,0.3608,106080.0,106070.0,0.81078441]
[1737316883143,0.04725512,106100.0,106080.0,0.047188]
[1737316883344,0.40805512,106100.0,106080.0,0.41863056]
[1737316883549,0.36087512,106100.0,106090.0,0.047184]
[1737316883849,7.512e-05,106100.0,106090.0,0.24245539]
[1737316884040,7.512e-05,106100.0,106090.0,0.65341313]
[1737316884343,0.047171,106120.0,106100.0,0.047175]
[1737316884547,0.047171,106120.0,106100.0,0.46948763]
[1737316884852,0.047171,106120.0,106110.0,0.047175]
[1737316885040,0.407971,106120.0,106110.0,0.00294965]
[1737316885440,0.407971,106120.0,106110.0,0.00288965]
[1737316887143,0.407967,106130.0,106110.0,0.00760942]
[1737316887451,0.407967,106130.0,106120.0,0.04717]
[1737316888735,0.407967,106130.0,106100.0,0.766578]
[1737316888939,0.3608,106120.0,106110.0,0.047174]
[1737316889141,0.3608,106120.0,106110.0,0.05189361]
[1737316889341,0.3608,106120.0,106110.0,0.047174]
[1737316889949,0.3608,106120.0,106110.0,0.08552065]
[1737316890751,0.40797,106120.0,106110.0,0.08552065]
[1737316891851,0.047175,106110.0,106100.0,0.57148955]
[1737316892053,0.047175,106110.0,106100.0,0.58800896]
[1737316892251,0.047175,106110.0,106100.0,0.58800897]
[1737316892649,0.047175,106110.0,106100.0,0.62635796]
[1737316893143,0.407975,106110.0,106100.0,0.56738037]
[1737316893352,0.407975,106110.0,106100.0,0.56738104]
[1737316894051,0.407975,106110.0,106100.0,0.20406054]
[1737316894251,0.047179,106100.0,106090.0,0.72810874]
[1737316894447,0.407979,106100.0,106090.0,0.22094874]
[1737316895344,0.407979,106100.0,106080.0,0.374]
[1737316895545,0.407984,106090.0,106080.0,0.37872127]
[1737316896851,0.407984,106090.0,106080.0,0.00472127]
[1737316897149,0.407984,106090.0,106070.0,0.2354103]
[1737316897150,0.047188,106080.0,106070.0,0.2354103]
[1737316897347,0.407988,106080.0,106070.0,0.22685113]
[1737316897542,0.047188,106080.0,106070.0,0.2769943]
[1737316897843,0.407988,106080.0,106070.0,0.23033201]
[1737316898049,0.407988,106080.0,106070.0,0.22980159]
[1737316898554,0.407988,106080.0,106070.0,0.00885285]
[1737316898943,0.765288,106080.0,106070.0,0.00295095]
[1737316899141,0.765288,106080.0,106070.0,0.00885334]
[1737316899345,0.765288,106080.0,106070.0,0.00295095]
[1737316899548,0.765288,106080.0,106070.0,0.00885322]
[1737316900447,0.407988,106080.0,106070.0,0.05604522]
[1737316901557,0.047188,106080.0,106070.0,0.05604522]
[1737316901856,0.407988,106080.0,106070.0,0.05604488]
[1737316902252,0.407988,106080.0,106070.0,0.00885288]
[1737316903449,0.3608,106080.0,106070.0,0.05014296]
[1737316903647,0.047184,106090.0,106080.0,0.047186]
[1737316903851,0.047184,106090.0,106080.0,0.25654194]
[1737316904056,0.52008066,106100.0,106090.0,0.047184]
[1737316904252,0.15928066,106100.0,106090.0,0.2345356]
[1737316904457,0.15928066,106100.0,106090.0,0.23404557]
[1737316904858,0.047184,106090.0,106080.0,0.01446156]
[1737316905155,0.47290066,106100.0,106080.0,0.01446156]
[1737316905347,0.3608,106090.0,106080.0,0.05899047]
[1737316905557,0.407982,106100.0,106080.0,0.047188]
[1737316905749,0.407982,106100.0,106080.0,0.05898977]
[1737316906052,0.407984,106090.0,106080.0,0.05015754]
[1737316906258,0.047184,106090.0,106080.0,0.03835577]
[1737316906454,0.407984,106090.0,106080.0,0.05281733]
[1737316906959,0.047188,106080.0,106070.0,0.6026103]
[1737316907160,0.3608,106090.0,106070.0,1.0271266]
[1737316907460,0.047188,106080.0,106070.0,0.6663266]
[1737316907659,0.047188,106080.0,106070.0,0.65749318]
[1737316907660,0.407988,106080.0,106070.0,0.65749318]
[1737316908365,0.047188,106080.0,106070.0,0.70468518]
[1737316909265,0.047188,106080.0,106070.0,1.04476193]
[1737316909562,0.047188,106080.0,106070.0,1.04529413]
[1737316909757,0.407988,106080.0,106070.0,1.04529413]
[1737316909955,0.407988,106080.0,106070.0,1.03030021]
[1737316910354,0.047188,106080.0,106070.0,1.03030021]
[1737316910656,0.407988,106080.0,106070.0,1.04477881]
[1737316910857,0.047188,106080.0,106070.0,1.04477881]
[1737316911458,0.047188,106080.0,106070.0,1.04531119]
[1737316911663,0.047188,106080.0,106070.0,1.03531484]
[1737316911852,0.047188,106080.0,106070.0,1.03006139]
[1737316912052,0.047188,106080.0,106070.0,1.03531492]
[1737316912854,0.407988,106080.0,106070.0,1.04068393]
[1737316913264,0.047188,106080.0,106070.0,0.99349193]
[1737316913568,0.407988,106080.0,106070.0,0.99349232]
[1737316914157,0.047188,106080.0,106070.0,0.99349232]
[1737316914358,0.407988,106080.0,106070.0,0.99349232]
[1737316915465,0.407988,106080.0,106070.0,0.6549076]
[1737316916460,0.407988,106080.0,106070.0,0.64310444]
[1737316916855,0.407988,106080.0,106070.0,0.64605548]
[1737316917057,0.407988,106080.0,106070.0,0.5932183]
[1737316917453,0.047188,106080.0,106070.0,0.65221421]
[1737316917653,0.047188,106080.0,106070.0,0.65274661]
[1737316917857,0.047188,106080.0,106070.0,0.65221421]
[1737316918361,0.047188,106080.0,106070.0,0.42977344]
[1737316918561,0.047188,106080.0,106070.0,0.48261236]
[1737316919152,0.047188,106080.0,106070.0,0.48261185]
[1737316919353,0.407985,106090.0,106080.0,0.047188]
[1737316919559,0.047185,106090.0,106080.0,0.0607614]
[1737316919861,0.047185,106090.0,106080.0,0.43389646]
[1737316920065,0.3608,106100.0,106090.0,0.047184]
[1737316920364,0.34658149,106110.0,106100.0,0.047179]
[1737316920562,0.34658149,106110.0,106100.0,0.4273524]
[1737316920765,0.70738149,106110.0,106100.0,0.4273524]
[1737316920965,0.66020349,106110.0,106100.0,0.4273524]
[1737316921367,0.407977,106110.0,106100.0,0.4273524]
[1737316921568,0.47290066,106120.0,106100.0,0.7881524]
[1737316921872,0.52007266,106120.0,106110.0,0.047175]
[1737316922062,0.52007266,106120.0,106110.0,0.06074679]
[1737316922260,0.52007266,106120.0,106110.0,0.05484692]
[1737316922568,0.52007266,106120.0,106110.0,0.00766988]
[1737316922767,0.407972,106120.0,106110.0,0.23011065]
[1737316923372,0.407972,106120.0,106110.0,0.00766988]
[1737316924369,0.407972,106120.0,106110.0,0.00767026]
[1737316924568,0.407972,106120.0,106110.0,0.23011103]
[1737316926560,0.605672,106120.0,106110.0,0.22244077]
[1737316927561,0.71777266,106120.0,106100.0,0.1793]
[1737316927760,0.551775,106110.0,106100.0,0.18225051]
[1737316928167,0.551775,106110.0,106100.0,0.1793]
[1737316929975,0.551775,106110.0,106090.0,0.22244077]
[1737316930172,0.407979,106100.0,106090.0,0.00295076]
[1737316930673,0.047184,106090.0,106080.0,0.41335085]
[1737316930882,0.407984,106090.0,106080.0,0.42102293]
[1737316931074,0.047184,106090.0,106080.0,0.46821093]
[1737316931270,0.047184,106090.0,106080.0,0.48001356]
[1737316931474,0.047184,106090.0,106080.0,0.52427266]
[1737316931675,0.15928166,106100.0,106090.0,0.047184]
[1737316931867,0.15928166,106100.0,106090.0,0.23875608]
[1737316932062,0.11210066,106100.0,106090.0,0.25055612]
[1737316932270,0.11210066,106100.0,106090.0,0.29481466]
[1737316932573,0.15927966,106100.0,106090.0,0.29481466]
[1737316932975,0.15927966,106100.0,106090.0,0.65561466]
[1737316933176,0.15927966,106100.0,106090.0,0.29481466]
[1737316933476,0.047179,106100.0,106090.0,0.51725543]
[1737316934577,0.047179,106100.0,106090.0,0.52771249]
[1737316934965,0.407979,106100.0,106090.0,0.30527172]
[1737316935179,0.047179,106100.0,106090.0,0.30527172]
[1737316935377,0.047179,106100.0,106090.0,0.30580454]
[1737316935580,0.407979,106100.0,106090.0,0.30580454]
[1737316935878,0.407979,106100.0,106090.0,0.30580481]
[1737316936074,0.407979,106100.0,106090.0,0.30527199]
[1737316936472,0.047179,106100.0,106090.0,0.30527199]
[1737316936675,0.047179,106100.0,106090.0,0.30580481]
[1737316937583,0.047179,106100.0,106090.0,0.52838114]
[1737316937884,0.047179,106100.0,106090.0,0.52838095]
[1737316938393,0.047179,106100.0,106090.0,0.52784813]
[1737316939478,0.047179,106100.0,106090.0,1.200947]
[1737316939680,0.047179,106100.0,106090.0,1.20094695]
[1737316940285,0.047179,106100.0,106090.0,1.38844695]
[1737316941083,0.407979,106100.0,106090.0,1.38844695]
[1737316941487,0.407979,106100.0,106090.0,1.3884473]
[1737316941684,0.407979,106100.0,106090.0,1.3412633]
[1737316941882,0.407979,106100.0,106090.0,0.98168059]
[1737316942080,0.407979,106100.0,106090.0,0.98168117]
[1737316942485,0.047179,106100.0,106090.0,0.94332321]
[1737316943191,0.407979,106100.0,106090.0,0.94332321]
[1737316943386,0.407979,106100.0,106090.0,0.93565209]
[1737316943686,0.407979,106100.0,106090.0,0.99050714]
[1737316943886,0.047179,106100.0,106090.0,0.99050714]
[1737316944288,0.15927166,106120.0,106110.0,0.047175]
[1737316944490,0.15927166,106120.0,106110.0,0.05484605]
[1737316944784,0.15927166,106120.0,106110.0,0.26994446]
[1737316944987,0.15927166,106120.0,106110.0,0.29354174]
[1737316945290,0.15927166,106120.0,106110.0,0.30829004]
[1737316945790,0.047171,106120.0,106110.0,0.86664266]
[1737316945988,0.047171,106120.0,106110.0,0.8725421]
[1737316947183,0.047171,106120.0,106110.0,0.85897161]
[1737316947379,0.047171,106120.0,106110.0,0.87254029]
[1737316948290,0.047171,106120.0,106110.0,1.19216446]
[1737316948291,0.407971,106120.0,106110.0,1.19216446]
[1737316948585,0.407971,106120.0,106110.0,1.15381888]
[1737316948791,0.407971,106120.0,106110.0,1.14791947]
[1737316949293,0.407971,106120.0,106110.0,0.81649636]
[1737316949790,0.407971,106120.0,106110.0,0.82239591]
[1737316951288,0.407971,106120.0,106110.0,0.82239596]
[1737316951484,0.407971,106120.0,106110.0,0.83287918]
[1737316952887,0.407971,106120.0,106110.0,0.49116813]
[1737316953288,0.407971,106120.0,106110.0,0.48063903]
[1737316954690,0.407971,106120.0,106110.0,0.46974134]
[1737316954886,0.407971,106120.0,106110.0,0.47564098]
[1737316956295,0.407971,106120.0,106110.0,0.48744014]
[1737316956497,0.407971,106120.0,106110.0,0.52578741]
[1737316956699,0.407971,106120.0,106110.0,0.51398825]
[1737316957101,0.407971,106120.0,106110.0,0.48744016]
[1737316957397,0.407971,106120.0,106110.0,0.48744021]
[1737316958299,0.407971,106120.0,106110.0,0.52578754]
[1737316958694,0.15926666,106130.0,106120.0,0.04717]
[1737316958894,0.15926666,106130.0,106120.0,0.43403946]
[1737316959195,0.15926666,106130.0,106120.0,0.4517363]
[1737316959796,0.15926666,106130.0,106120.0,0.49007818]
[1737316960501,0.047166,106130.0,106120.0,1.05007588]
[1737316960700,0.047166,106130.0,106120.0,1.06455336]
[1737316960908,0.407966,106130.0,106120.0,0.82398336]
[1737316961205,0.407966,106130.0,106120.0,0.81218551]
[1737316961394,0.047166,106130.0,106120.0,0.75936615]
[1737316961897,0.407966,106130.0,106120.0,0.80063716]
[1737316962099,0.047166,106130.0,106120.0,0.80063716]
[1737316962288,0.407966,106130.0,106120.0,0.81833423]
[1737316962491,0.407966,106130.0,106120.0,0.87115506]
[1737316962708,0.407966,106130.0,106120.0,0.85935614]
[1737316963303,0.407966,106130.0,106120.0,0.81833347]
[1737316963602,0.407966,106130.0,106120.0,0.82101285]
[1737316964104,0.407966,106130.0,106120.0,0.80653537]
[1737316964903,0.407966,106130.0,106120.0,0.80063638]
[1737316965096,0.407966,106130.0,106120.0,0.80063646]
[1737316965595,0.047166,106130.0,106120.0,1.17323456]
[1737316965792,0.3608,106170.0,106140.0,0.309063]
[1737316965998,0.3608,106170.0,106160.0,0.309054]
[1737316966199,0.3608,106190.0,106180.0,0.047144]
[1737316966594,0.3608,106190.0,106180.0,0.05009217]
[1737316967301,0.507936,106200.0,106180.0,0.50779417]
[1737316967595,0.507936,106200.0,106180.0,0.62319969]
[1737316967596,0.25396695,106190.0,106180.0,0.62319969]
[1737316967804,0.25396695,106190.0,106180.0,1.01559969]
[1737316968106,0.61476695,106190.0,106180.0,0.66953725]
[1737316968307,0.61476695,106190.0,106180.0,0.65302973]
[1737316968605,0.25396695,106190.0,106180.0,0.99909217]
[1737316968806,0.25396695,106190.0,106180.0,1.01559839]
[1737316968990,0.1,106200.0,106180.0,1.01559839]
[1737316969189,0.1,106200.0,106190.0,0.407939]
[1737316969399,0.1,106200.0,106190.0,0.42739339]
[1737316970294,0.1,106200.0,106190.0,0.42739143]
[1737316970699,0.25396695,106220.0,106210.0,0.04713]
[1737316970909,0.13020665,106240.0,106230.0,0.047121]
[1737316971096,0.01733245,106240.0,106230.0,0.047121]
[1737316971296,0.804414,106250.0,106230.0,0.047121]
[1737316971499,0.804414,106250.0,106240.0,0.047117]
[1737316971995,0.804414,106250.0,106240.0,0.05006345]
[1737316972196,0.609114,106250.0,106240.0,0.05006345]
[1737316972397,0.562,106250.0,106240.0,0.309019]
[1737316972592,0.407909,106260.0,106250.0,0.047112]
[1737316972593,0.3608,106260.0,106250.0,0.047112]
[1737316972799,0.66030359,106270.0,106260.0,0.30901]
[1737316973001,0.25239859,106270.0,106260.0,0.30901]
[1737316973201,0.25239859,106270.0,106260.0,0.31195572]
[1737316973795,0.25239859,106270.0,106260.0,0.05005372]
[1737316973998,0.61319859,106270.0,106260.0,0.05005372]
[1737316974198,0.3608,106270.0,106260.0,0.05005381]
[1737316974702,0.799299,106280.0,106260.0,0.00294581]
[1737316974900,0.3608,106270.0,106260.0,0.05005381]
[1737316975919,0.3608,106280.0,106270.0,0.047104]
[1737316976104,0.3608,106280.0,106270.0,0.31195181]
[1737316976312,0.51229521,106290.0,106270.0,0.05004681]
[1737316976495,0.3608,106280.0,106270.0,0.05004681]
[1737316977101,0.51229521,106290.0,106280.0,0.047099]
[1737316977502,0.51229521,106290.0,106280.0,0.05004435]
[1737316978001,0.51229521,106290.0,106280.0,0.05004437]
[1737316978206,0.51229521,106290.0,106280.0,0.047099]
[1737316978609,0.51229521,106290.0,106280.0,0.05004434]
[1737316978811,0.51229521,106290.0,106280.0,0.047099]